fUST/lending_fUST_20250724
["ID","MTS","AMOUNT","RATE_DAILY","PERIOD"]
[374504088,1753329041420,-460.0,0.00019178,2]
[374504089,1753329041430,-530.18207316,0.00019178,2]
[374504090,1753329041439,-460.0,0.00019178,2]
[374504091,1753329041449,-463.2607434,0.00019178,2]
[374504092,1753329041458,-1505.13,0.00019178,2]
[374504093,1753329041468,-460.0,0.00019178,2]
[374504094,1753329041478,-460.0,0.00019178,2]
[374504095,1753329041487,-460.0,0.00019178,2]
[374504096,1753329041496,-266.20078983,0.00019178,2]
[374504097,1753329041506,-460.0,0.00019178,2]
[374504098,1753329041516,-592.53242923,0.00019178,2]
[374504099,1753329041525,-460.0,0.00019178,2]
[374504100,1753329041534,-460.0,0.00019178,2]
[374504101,1753329041544,-460.0,0.00019178,2]
[374504102,1753329041553,-460.0,0.00019178,2]
[374504103,1753329041562,-462.43745262,0.00019178,2]
[374504104,1753329041571,-460.0,0.00019178,2]
[374504105,1753329041580,-460.0,0.00019178,2]
[374504106,1753329041590,-1080.86,0.00019178,2]
[374504107,1753329041599,-571.35313329,0.00019178,2]
[374504108,1753329041608,-460.0,0.00019178,2]
[374504109,1753329041617,-460.0,0.00019178,2]
[374504110,1753329041626,-463.98710416,0.00019178,2]
[374504111,1753329041636,-460.0,0.00019178,2]
[374504112,1753329041645,-460.0,0.00019178,2]
[374504113,1753329041654,-460.0,0.00019178,2]
[374504114,1753329041664,-460.0,0.00019178,2]
[374504115,1753329041673,-460.0,0.00019178,2]
[374504116,1753329041682,-460.0,0.00019178,2]
[374504117,1753329041692,-650.6,0.00019178,2]
[374504118,1753329041701,-460.0,0.00019178,2]
[374504119,1753329041710,-460.0,0.00019178,2]
[374504120,1753329041720,-685.17,0.00019178,2]
[374504121,1753329041729,-460.0,0.00019178,2]
[374504122,1753329041739,-461.28992641,0.00019178,2]
[374504123,1753329041748,-460.0,0.00019178,2]
[374504124,1753329041757,-460.0,0.00019178,2]
[374504125,1753329041766,-460.0,0.00019178,2]
[374504126,1753329041777,-460.0,0.00019178,2]
[374504127,1753329041787,-460.0,0.00019178,2]
[374504128,1753329041796,-460.0,0.00019178,2]
[374504129,1753329041806,-460.0,0.00019178,2]
[374504130,1753329041815,-460.0,0.00019178,2]
[374504131,1753329041824,-460.0,0.00019178,2]
[374504132,1753329041834,-541.74207393,0.00019178,2]
[374504133,1753329041843,-460.0,0.00019178,2]
[374504134,1753329041852,-666.0,0.00019178,2]
[374504135,1753329041861,-640.052895,0.00019178,2]
[374504136,1753329041870,-500.0,0.00019178,2]
[374504137,1753329041879,-5000.0,0.00019178,2]
[374504138,1753329041888,-5000.0,0.00019178,2]
[374504139,1753329041898,-5000.0,0.00019178,2]
[374504140,1753329041907,-3042.1131575,0.00019178,2]
[374504141,1753329041917,-54008.0576348,0.00019178,2]
[374504142,1753329041927,-4157.81540238,0.00019206,2]
[374504143,1753329041936,-151.0,0.00019306,2]
[374504144,1753329041946,-151.0,0.00019306,2]
[374504145,1753329041955,-151.0,0.00019306,2]
[374504146,1753329041964,-151.0,0.00019306,2]
[374504147,1753329041974,-151.0,0.00019306,2]
[374504148,1753329041983,-215.0738,0.00019306,2]
[374504149,1753329041994,-151.0,0.00019306,2]
[374504150,1753329042006,-151.0,0.00019306,2]
[374504151,1753329042015,-151.0,0.00019306,2]
[374504152,1753329042025,-151.0,0.00019306,2]
[374504153,1753329042034,-151.0,0.00019306,2]
[374504154,1753329042043,-151.0,0.00019306,2]
[374504155,1753329042052,-151.0,0.00019306,2]
[374504156,1753329042062,-151.0,0.00019306,2]
[374504157,1753329042072,-152.19962789,0.00019306,2]
[374504158,1753329042080,-154.78684829,0.00019306,2]
[374504159,1753329042090,-151.0,0.00019306,2]
[374504160,1753329042099,-151.0,0.00019306,2]
[374504161,1753329042109,-151.0,0.00019306,2]
[374504162,1753329042118,-152.90526298,0.00019306,2]
[374504163,1753329042128,-151.0,0.00019306,2]
[374504164,1753329042138,-151.65869826,0.00019306,2]
[374504165,1753329042147,-191.73748684,0.00019306,2]
[374504166,1753329042156,-151.0,0.00019306,2]
[374504167,1753329042166,-1601.36500808,0.00019306,2]
[374504168,1753329042175,-151.0,0.00019306,2]
[374504169,1753329042184,-151.0,0.00019306,2]
[374504170,1753329042194,-151.0,0.00019306,2]
[374504171,1753329042203,-151.0,0.00019306,2]
[374504172,1753329042213,-151.0,0.00019306,2]
[374504173,1753329042222,-151.0,0.00019306,2]
[374504174,1753329042231,-151.0,0.00019306,2]
[374504175,1753329042241,-151.0,0.00019306,2]
[374504177,1753329042250,-151.0,0.00019306,2]
[374504178,1753329042260,-151.0,0.00019306,2]
[374504179,1753329042269,-151.0,0.00019306,2]
[374504180,1753329042278,-151.0,0.00019306,2]
[374504181,1753329042292,-151.0,0.00019306,2]
[374504182,1753329042301,-25000.0,0.00019306,2]
[374504183,1753329042310,-151.0,0.00019306,2]
[374504184,1753329042319,-24193.01915981,0.00019306,2]
[374504185,1753329042330,-151.0,0.00019306,2]
[374504186,1753329042339,-151.0,0.00019306,2]
[374504187,1753329042348,-151.0,0.00019306,2]
[374504188,1753329042357,-151.0,0.00019306,2]
[374504189,1753329042367,-151.0,0.00019306,2]
[374504190,1753329042377,-729.65819668,0.00019437,2]
[374504191,1753329042387,-460.0,0.00019452,2]
[374504192,1753329042396,-460.0,0.00019452,2]
[374504193,1753329042405,-465.21641958,0.00019452,2]
[374504194,1753329042414,-460.0,0.00019452,2]
[374504195,1753329042424,-460.0,0.00019452,2]
[374504196,1753329042433,-460.0,0.00019452,2]
[374504197,1753329042443,-460.0,0.00019452,2]
[374504198,1753329042452,-460.0,0.00019452,2]
[374504199,1753329042462,-460.0,0.00019452,2]
[374504200,1753329042471,-460.0,0.00019452,2]
[374504201,1753329042480,-460.0,0.00019452,2]
[374504202,1753329042490,-460.0,0.00019452,2]
[374504203,1753329042499,-460.0,0.00019452,2]
[374504204,1753329042509,-460.0,0.00019452,2]
[374504205,1753329042518,-460.0,0.00019452,2]
[374504206,1753329042528,-490.24488446,0.00019452,2]
[374504207,1753329042538,-460.0,0.00019452,2]
[374504208,1753329042548,-468.46015071,0.00019452,2]
[374504209,1753329042557,-460.0,0.00019452,2]
[374504210,1753329042566,-460.0,0.00019452,2]
[374504211,1753329042575,-460.0,0.00019452,2]
[374504212,1753329042585,-460.0,0.00019452,2]
[374504213,1753329042594,-460.0,0.00019452,2]
[374504214,1753329042604,-460.0,0.00019452,2]
[374504215,1753329042614,-460.0,0.00019452,2]
[374504216,1753329042624,-466.46983181,0.00019452,2]
[374504217,1753329042634,-465.48324913,0.00019452,2]
[374504218,1753329042643,-460.0,0.00019452,2]
[374504219,1753329042653,-460.0,0.00019452,2]
[374504220,1753329042663,-461.98127413,0.00019452,2]
[374504221,1753329042672,-460.0,0.00019452,2]
[374504222,1753329042681,-460.0,0.00019452,2]
[374504223,1753329042691,-463.03708655,0.00019452,2]
[374504224,1753329042701,-460.0,0.00019452,2]
[374504225,1753329042710,-460.0,0.00019452,2]
[374504226,1753329042719,-466.3726038,0.00019452,2]
[374504227,1753329042729,-460.0,0.00019452,2]
[374504228,1753329042739,-460.0,0.00019452,2]
[374504229,1753329042749,-460.0,0.00019452,2]
[374504230,1753329042758,-564.13193161,0.00019452,2]
[374504231,1753329042767,-458.60289249,0.00019452,2]
[374504232,1753329042778,-460.0,0.00019452,2]
[374504233,1753329042787,-468.15436374,0.00019452,2]
[374504234,1753329042796,-475.18046806,0.00019452,2]
[374504235,1753329042805,-726.76,0.00019452,2]
[374504236,1753329042814,-460.0,0.00019452,2]
[374504237,1753329042824,-460.0,0.00019452,2]
[374504238,1753329042833,-460.0,0.00019452,2]
[374504239,1753329042843,-460.0,0.00019452,2]
[374504240,1753329042852,-462.79214819,0.00019452,2]
[374504241,1753329042862,-460.0,0.00019452,2]
[374504242,1753329042871,-460.0,0.00019452,2]
[374504243,1753329042880,-460.0,0.00019452,2]
[374504244,1753329042889,-460.0,0.00019452,2]
[374504245,1753329042898,-460.0,0.00019452,2]
[374504246,1753329042909,-460.0,0.00019452,2]
[374504247,1753329042918,-462.58308559,0.00019452,2]
[374504248,1753329042927,-460.0,0.00019452,2]
[374504249,1753329042937,-464.51892482,0.00019452,2]
[374504250,1753329042946,-460.0,0.00019452,2]
[374504251,1753329042955,-463.79836091,0.00019452,2]
[374504252,1753329042965,-460.0,0.00019452,2]
[374504254,1753329043073,-465.58361309,0.00019452,2]
[374504255,1753329043085,-460.0,0.00019452,2]
[374504256,1753329043095,-608.0456839,0.00019452,2]
[374504257,1753329043104,-475.5322068,0.00019452,2]
[374504258,1753329043114,-460.0,0.00019452,2]
[374504259,1753329043124,-462.4968254,0.00019452,2]
[374504260,1753329043133,-460.0,0.00019452,2]
[374504261,1753329043143,-460.0,0.00019452,2]
[374504262,1753329043152,-460.0,0.00019452,2]
[374504263,1753329043161,-460.0,0.00019452,2]
[374504264,1753329043171,-460.0,0.00019452,2]
[374504265,1753329043181,-196.04479777,0.00019452,2]
[374504266,1753329043190,-460.0,0.00019452,2]
[374504267,1753329043199,-460.0,0.00019452,2]
[374504268,1753329043209,-466.02726588,0.00019452,2]
[374504269,1753329043219,-465.30196103,0.00019452,2]
[374504270,1753329043228,-490.79942786,0.00019452,2]
[374504271,1753329043238,-460.0,0.00019452,2]
[374504272,1753329043247,-460.0,0.00019452,2]
[374504273,1753329043257,-460.0,0.00019452,2]
[374504274,1753329043266,-460.0,0.00019452,2]
[374504275,1753329043276,-460.0,0.00019452,2]
[374504276,1753329043290,-460.0,0.00019452,2]
[374504278,1753329043299,-460.0,0.00019452,2]
[374504279,1753329043309,-460.0,0.00019452,2]
[374504280,1753329043318,-460.0,0.00019452,2]
[374504281,1753329043328,-465.35213522,0.00019452,2]
[374504282,1753329043337,-460.0,0.00019452,2]
[374504283,1753329043346,-464.73003009,0.00019452,2]
[374504284,1753329043355,-460.0,0.00019452,2]
[374504285,1753329043365,-460.0,0.00019452,2]
[374504286,1753329043374,-460.0,0.00019452,2]
[374504287,1753329043384,-460.0,0.00019452,2]
[374504288,1753329043393,-460.0,0.00019452,2]
[374504289,1753329043402,-460.0,0.00019452,2]
[374504290,1753329043411,-3129.69,0.00019452,2]
[374504291,1753329043421,-460.0,0.00019452,2]
[374504292,1753329043430,-460.0,0.00019452,2]
[374504293,1753329043440,-460.0,0.00019452,2]
[374504294,1753329043449,-779.16,0.00019452,2]
[374504295,1753329043459,-567.84023847,0.00019452,2]
[374504296,1753329043468,-460.0,0.00019452,2]
[374504297,1753329043477,-460.0,0.00019452,2]
[374504298,1753329043487,-460.0,0.00019452,2]
[374504299,1753329043497,-462.17,0.00019452,2]
[374504300,1753329043506,-711.85,0.00019452,2]
[374504301,1753329043516,-460.0,0.00019452,2]
[374504302,1753329043525,-467.05,0.00019452,2]
[374504303,1753329043534,-460.0,0.00019452,2]
[374504304,1753329043543,-460.0,0.00019452,2]
[374504305,1753329043552,-460.0,0.00019452,2]
[374504306,1753329043561,-460.0,0.00019452,2]
[374504307,1753329043571,-460.0,0.00019452,2]
[374504308,1753329043581,-460.0,0.00019452,2]
[374504309,1753329043591,-479.01827678,0.00019452,2]
[374504310,1753329043601,-460.0,0.00019452,2]
[374504311,1753329043610,-460.0,0.00019452,2]
[374504312,1753329043619,-2724.56,0.00019452,2]
[374504313,1753329043628,-460.0,0.00019452,2]
[374504314,1753329043638,-460.0,0.00019452,2]
[374504315,1753329043647,-798.43,0.00019452,2]
[374504316,1753329043656,-460.0,0.00019452,2]
[374504317,1753329043666,-463.02392968,0.00019452,2]
[374504318,1753329043676,-460.0,0.00019452,2]
[374504319,1753329043685,-461.30477314,0.00019452,2]
[374504320,1753329043695,-1526.67,0.00019452,2]
[374504321,1753329043704,-451.71770144,0.00019452,2]
[374504322,1753329043713,-460.0,0.00019452,2]
[374504323,1753329043722,-460.0,0.00019452,2]
[374504324,1753329043732,-460.0,0.00019452,2]
[374504325,1753329043741,-252.28445255,0.00019452,2]
[374504326,1753329043750,-460.0,0.00019452,2]
[374504327,1753329043760,-4527.52,0.00019452,2]
[374504328,1753329043769,-460.0,0.00019452,2]
[374504329,1753329043779,-460.0,0.00019452,2]
[374504330,1753329043788,-505.96903062,0.00019452,2]
[374504331,1753329043798,-460.0,0.00019452,2]
[374504332,1753329043807,-2086.31,0.00019452,2]
[374504333,1753329043817,-779.11,0.00019452,2]
[374504334,1753329043826,-460.0,0.00019452,2]
[374504335,1753329043835,-460.0,0.00019452,2]
[374504336,1753329043845,-460.0,0.00019452,2]
[374504337,1753329043854,-460.0,0.00019452,2]
[374504338,1753329043864,-460.0,0.00019452,2]
[374504339,1753329043873,-218.68448043,0.00019452,2]
[374504340,1753329043883,-460.0,0.00019452,2]
[374504341,1753329043892,-460.0,0.00019452,2]
[374504342,1753329043903,-460.0,0.00019452,2]
[374504343,1753329043913,-460.0,0.00019452,2]
[374504344,1753329043922,-460.0,0.00019452,2]
[374504345,1753329043932,-460.0,0.00019452,2]
[374504346,1753329043941,-1360.38,0.00019452,2]
[374504347,1753329043950,-460.0,0.00019452,2]
[374504348,1753329043960,-460.0,0.00019452,2]
[374504349,1753329043969,-460.0,0.00019452,2]
[374504350,1753329043978,-460.0,0.00019452,2]
[374504351,1753329043988,-894.56,0.00019452,2]
[374504352,1753329043997,-460.0,0.00019452,2]
[374504353,1753329044006,-589.81,0.00019452,2]
[374504354,1753329044016,-460.0,0.00019452,2]
[374504355,1753329044025,-460.0,0.00019452,2]
[374504356,1753329044035,-488.02,0.00019452,2]
[374504357,1753329044044,-460.0,0.00019452,2]
[374504358,1753329044053,-460.0,0.00019452,2]
[374504359,1753329044063,-460.0,0.00019452,2]
[374504360,1753329044072,-469.4028359,0.00019452,2]
[374504361,1753329044081,-465.25,0.00019452,2]
[374504362,1753329044090,-1392.92,0.00019452,2]
[374504363,1753329044100,-460.0,0.00019452,2]
[374504364,1753329044109,-5242.19,0.00019452,2]
[374504365,1753329044119,-464.29558711,0.00019452,2]
[374504366,1753329044128,-460.0,0.00019452,2]
[374504367,1753329044137,-579.57,0.00019452,2]
[374504368,1753329044147,-460.0,0.00019452,2]
[374504369,1753329044156,-460.0,0.00019452,2]
[374504370,1753329044165,-460.0,0.00019452,2]
[374504371,1753329044174,-1989.65,0.00019452,2]
[374504372,1753329044184,-553.41,0.00019452,2]
[374504373,1753329044193,-1562.25,0.00019452,2]
[374504374,1753329044202,-460.0,0.00019452,2]
[374504375,1753329044211,-284.84734229,0.00019452,2]
[374504376,1753329044221,-1538.53,0.00019452,2]
[374504377,1753329044230,-460.0,0.00019452,2]
[374504378,1753329044240,-460.0,0.00019452,2]
[374504379,1753329044250,-460.0,0.00019452,2]
[374504380,1753329044259,-460.0,0.00019452,2]
[374504381,1753329044269,-828.63,0.00019452,2]
[374504382,1753329044281,-460.0,0.00019452,2]
[374504383,1753329044290,-460.0,0.00019452,2]
[374504384,1753329044299,-460.0,0.00019452,2]
[374504385,1753329044308,-460.0,0.00019452,2]
[374504386,1753329044318,-466.48912756,0.00019452,2]
[374504387,1753329044328,-460.0,0.00019452,2]
[374504388,1753329044337,-460.0,0.00019452,2]
[374504389,1753329044347,-460.0,0.00019452,2]
[374504390,1753329044356,-460.0,0.00019452,2]
[374504391,1753329044366,-460.0,0.00019452,2]
[374504392,1753329044375,-460.0,0.00019452,2]
[374504393,1753329044385,-688.32,0.00019452,2]
[374504394,1753329044394,-460.0,0.00019452,2]
[374504395,1753329044403,-460.0,0.00019452,2]
[374504396,1753329044412,-1505.13,0.00019452,2]
[374504397,1753329044421,-460.0,0.00019452,2]
[374504398,1753329044430,-460.0,0.00019452,2]
[374504399,1753329044439,-460.0,0.00019452,2]
[374504400,1753329044448,-460.0,0.00019452,2]
[374504401,1753329044458,-460.0,0.00019452,2]
[374504402,1753329044468,-460.0,0.00019452,2]
[374504403,1753329044478,-1080.86,0.00019452,2]
[374504404,1753329044487,-460.0,0.00019452,2]
[374504405,1753329044496,-466.20110151,0.00019452,2]
[374504406,1753329044506,-460.0,0.00019452,2]
[374504407,1753329044516,-460.0,0.00019452,2]
[374504408,1753329044525,-462.09998759,0.00019452,2]
[374504409,1753329044535,-460.0,0.00019452,2]
[374504410,1753329044544,-650.6,0.00019452,2]
[374504411,1753329044554,-460.0,0.00019452,2]
[374504412,1753329044563,-685.17,0.00019452,2]
[374504413,1753329044572,-460.0,0.00019452,2]
[374504414,1753329044582,-460.0,0.00019452,2]
[374504415,1753329044591,-464.37755864,0.00019452,2]
[374504416,1753329044601,-460.0,0.00019452,2]
[374504417,1753329044610,-460.0,0.00019452,2]
[374504418,1753329044620,-500.0,0.00019452,2]
[374504419,1753329044629,-2644.85819508,0.00019522,2]
[374504420,1753329044638,-154.5229081,0.00019534,2]
[374504421,1753329044647,-153.0,0.00019534,2]
[374504422,1753329044656,-151.0,0.00019564,2]
[374504423,1753329044665,-151.0,0.00019564,2]
[374504424,1753329044675,-151.0,0.00019564,2]
[374504425,1753329044684,-151.0,0.00019564,2]
[374504426,1753329044694,-151.0,0.00019564,2]
[374504427,1753329044703,-151.0,0.00019564,2]
[374504428,1753329044712,-151.0,0.00019564,2]
[374504429,1753329044721,-151.0,0.00019564,2]
[374504430,1753329044731,-12624.810388,0.00019571,2]
[374504431,1753329044741,-160.0,0.00019572,2]
[374504432,1753329044750,-526.24749348,0.00019572,2]
[374504433,1753329044760,-160.0,0.00019572,2]
[374504434,1753329044769,-215.88777038,0.00019572,2]
[374504435,1753329044781,-392.435318,0.00019599,2]
[374504436,1753329044790,-151.183589,0.000197,2]
[374504437,1753329044799,-151.0,0.000197,2]
[374504438,1753329044808,-151.0,0.000197,2]
[374504439,1753329044818,-151.0,0.000197,2]
[374504440,1753329044827,-3877.7575391,0.00019726,2]
[374504441,1753329044836,-1214.28422535,0.00019726,2]
[374504442,1753329044845,-263.917434,0.00019726,2]
[374504443,1753329044854,-151.0,0.00019726,2]
[374504444,1753329044863,-263.917434,0.00019726,2]
[374504445,1753329044872,-151.0,0.00019726,2]
[374504446,1753329044882,-151.0,0.00019726,2]
[374504447,1753329044891,-151.0,0.00019726,2]
[374504448,1753329044900,-151.0,0.00019726,2]
[374504449,1753329044910,-151.0,0.00019726,2]
[374504450,1753329044920,-460.0,0.00019726,2]
[374504451,1753329044929,-460.0,0.00019726,2]
[374504452,1753329044938,-151.0,0.00019726,2]
[374504453,1753329044947,-151.0,0.00019726,2]
[374504454,1753329044957,-151.0,0.00019726,2]
[374504455,1753329044966,-151.0,0.00019726,2]
[374504456,1753329044975,-946.58506667,0.00019726,2]
[374504457,1753329045039,-36.80841417,0.00019726,2]
[374504458,1753329045050,-248.49619416,0.00019726,2]
[374504459,1753329045059,-1231.889675,0.00019726,2]
[374504460,1753329045068,-430.401487,0.00019726,2]
[374504461,1753329045078,-430.401487,0.00019726,2]
[374504462,1753329045087,-469.82383524,0.00019726,2]
[374504463,1753329045097,-460.0,0.00019726,2]
[374504464,1753329045107,-182.602998,0.00019726,2]
[374504465,1753329045116,-182.602998,0.00019726,2]
[374504466,1753329045126,-460.0,0.00019726,2]
[374504467,1753329045135,-152.251544,0.00019726,2]
[374504469,1753329045144,-152.251544,0.00019726,2]
[374504470,1753329045154,-501.0060976,0.00019726,2]
[374504471,1753329045163,-460.0,0.00019726,2]
[374504472,1753329045172,-460.0,0.00019726,2]
[374504473,1753329045181,-460.0,0.00019726,2]
[374504474,1753329045191,-466.01816996,0.00019726,2]
[374504475,1753329045201,-460.0,0.00019726,2]
[374504476,1753329045306,-460.0,0.00019726,2]
[374504477,1753329045316,-503.361974,0.00019726,2]
[374504478,1753329045327,-503.361974,0.00019726,2]
[374504479,1753329045336,-460.0,0.00019726,2]
[374504480,1753329045346,-460.0,0.00019726,2]
[374504481,1753329045355,-460.0,0.00019726,2]
[374504482,1753329045366,-204.176041,0.00019726,2]
[374504483,1753329045376,-204.176041,0.00019726,2]
[374504484,1753329045385,-447.66854492,0.00019726,2]
[374504485,1753329045394,-195.65,0.00019726,2]
[374504486,1753329045403,-460.0,0.00019726,2]
[374504487,1753329045413,-500.6417397,0.00019726,2]
[374504488,1753329045422,-460.0,0.00019726,2]
[374504489,1753329045431,-460.0,0.00019726,2]
[374504490,1753329045441,-329.4216125,0.00019726,2]
[374504491,1753329045450,-443.11165119,0.00019726,2]
[374504492,1753329045460,-460.0,0.00019726,2]
[374504493,1753329045470,-460.0,0.00019726,2]
[374504494,1753329045480,-460.0,0.00019726,2]
[374504495,1753329045490,-235.77939173,0.00019726,2]
[374504496,1753329045502,-224.22060827,0.00019726,2]
[374504497,1753329045512,-33.09836583,0.00019726,2]
[374504498,1753329045543,-693.66163417,0.00019726,2]
[374504499,1753329045553,-102.46895976,0.00019726,2]
[374504500,1753329045564,-357.53104024,0.00019726,2]
[374504501,1753329045573,-460.0,0.00019726,2]
[374504502,1753329045583,-460.0,0.00019726,2]
[374504503,1753329045592,-460.0,0.00019726,2]
[374504504,1753329045601,-460.0,0.00019726,2]
[374504505,1753329045611,-460.0,0.00019726,2]
[374504506,1753329045620,-460.0,0.00019726,2]
[374504507,1753329045629,-460.0,0.00019726,2]
[374504508,1753329045638,-460.0,0.00019726,2]
[374504509,1753329045648,-460.0,0.00019726,2]
[374504511,1753329045658,-460.0,0.00019726,2]
[374504512,1753329045667,-460.0,0.00019726,2]
[374504513,1753329045677,-151.0,0.00019726,2]
[374504514,1753329045686,-151.0,0.00019726,2]
[374504515,1753329045695,-460.0,0.00019726,2]
[374504516,1753329045704,-460.0,0.00019726,2]
[374504517,1753329045713,-460.0,0.00019726,2]
[374504518,1753329045723,-1753.0,0.00019726,2]
[374504519,1753329045732,-160.93346759,0.00019726,2]
[374504520,1753329045742,-1753.0,0.00019726,2]
[374504521,1753329045751,-1753.0,0.00019726,2]
[374504522,1753329045761,-1753.0,0.00019726,2]
[374504523,1753329045771,-1753.0,0.00019726,2]
[374504524,1753329045783,-1753.0,0.00019726,2]
[374504525,1753329045792,-1753.0,0.00019726,2]
[374504526,1753329045801,-1753.0,0.00019726,2]
[374504527,1753329045810,-1753.0,0.00019726,2]
[374504528,1753329045820,-1753.0,0.00019726,2]
[374504529,1753329045830,-1753.0,0.00019726,2]
[374504530,1753329045839,-1753.0,0.00019726,2]
[374504531,1753329045848,-1753.0,0.00019726,2]
[374504532,1753329045858,-1753.0,0.00019726,2]
[374504533,1753329045867,-1753.0,0.00019726,2]
[374504534,1753329045877,-470.95172703,0.00019726,2]
[374504535,1753329045886,-154.0,0.00019726,2]
[374504536,1753329045895,-1753.0,0.00019726,2]
[374504537,1753329045905,-1753.0,0.00019726,2]
[374504538,1753329045915,-154.0,0.00019726,2]
[374504539,1753329045924,-1753.0,0.00019726,2]
[374504540,1753329045933,-1268.31498431,0.00019726,2]
[374504541,1753329045943,-154.0,0.00019726,2]
[374504542,1753329045952,-1753.0,0.00019726,2]
[374504543,1753329045962,-255.74324676,0.00019726,2]
[374504544,1753329045971,-460.0,0.00019726,2]
[374504545,1753329045981,-460.0,0.00019726,2]
[374504546,1753329045990,-460.0,0.00019726,2]
[374504547,1753329045999,-324.0,0.00019726,2]
[374504548,1753329046009,-324.0,0.00019726,2]
[374504549,1753329046018,-202.45,0.00019726,2]
[374504550,1753329046030,-324.0,0.00019726,2]
[374504551,1753329046039,-324.0,0.00019726,2]
[374504552,1753329046049,-324.0,0.00019726,2]
[374504553,1753329046058,-324.0,0.00019726,2]
[374504554,1753329046068,-324.0,0.00019726,2]
[374504555,1753329046077,-324.0,0.00019726,2]
[374504556,1753329046089,-324.0,0.00019726,2]
[374504557,1753329046100,-324.0,0.00019726,2]
[374504558,1753329046109,-324.0,0.00019726,2]
[374504559,1753329046119,-189.18848528,0.00019726,2]
[374504560,1753329046128,-324.0,0.00019726,2]
[374504561,1753329046138,-324.0,0.00019726,2]
[374504562,1753329046148,-324.0,0.00019726,2]
[374504563,1753329046157,-324.0,0.00019726,2]
[374504564,1753329046166,-324.0,0.00019726,2]
[374504565,1753329046176,-324.0,0.00019726,2]
[374504566,1753329046186,-324.0,0.00019726,2]
[374504567,1753329046195,-324.0,0.00019726,2]
[374504568,1753329046204,-324.0,0.00019726,2]
[374504569,1753329046213,-324.0,0.00019726,2]
[374504570,1753329046222,-324.0,0.00019726,2]
[374504571,1753329046231,-324.0,0.00019726,2]
[374504572,1753329046241,-324.0,0.00019726,2]
[374504573,1753329046250,-324.0,0.00019726,2]
[374504574,1753329046260,-324.0,0.00019726,2]
[374504575,1753329046270,-324.0,0.00019726,2]
[374504576,1753329046280,-324.0,0.00019726,2]
[374504577,1753329046289,-324.0,0.00019726,2]
[374504578,1753329046299,-324.0,0.00019726,2]
[374504579,1753329046308,-460.0,0.00019726,2]
[374504580,1753329046317,-324.0,0.00019726,2]
[374504581,1753329046329,-324.0,0.00019726,2]
[374504582,1753329046339,-324.0,0.00019726,2]
[374504583,1753329046348,-324.0,0.00019726,2]
[374504584,1753329046360,-324.0,0.00019726,2]
[374504585,1753329046369,-324.0,0.00019726,2]
[374504586,1753329046379,-460.0,0.00019726,2]
[374504587,1753329046388,-460.0,0.00019726,2]
[374504588,1753329046398,-460.0,0.00019726,2]
[374504590,1753329046408,-578.33793713,0.00019726,2]
[374504592,1753329046418,-3129.69,0.00019726,2]
[374504594,1753329046427,-356.21929665,0.00019726,2]
[374504596,1753329046437,-779.16,0.00019726,2]